[Event "Titled Tuesday Blitz February 22 Late 2022"]
[White "Al Hosani, Omran"]
[Black "Qashashvili, Alexandre"]
[WhiteFideId "9308733"]
[BlackFideId "13600842"]
[WhiteElo "2246"]
[BlackElo "2316"]
[Result "0-1"]
[Round "07"]
[TimeControl "180+1"]
[Date "2022.02.23"]
[WhiteClock "0:00:08"]
[BlackClock "0:00:05"]

1. e4 {[%clk 0:03:00]}  d5 {[%clk 0:03:00]} 2. exd5 {[%clk 0:02:52]}  Qxd5 {[%clk 0:03:00]} 3. Nc3 {[%clk 0:02:52]}  Qa5 {[%clk 0:02:59]} 4. d4 {[%clk 0:02:52]}  Bf5 {[%clk 0:02:34]} 5. Nf3 {[%clk 0:02:49]}  Nf6 {[%clk 0:02:29]} 6. Bc4 {[%clk 0:02:46]}  e6 {[%clk 0:02:27]} 7. O-O {[%clk 0:02:43]}  c6 {[%clk 0:02:22]} 8. Ne5 {[%clk 0:02:37]}  Nbd7 {[%clk 0:02:18]} 9. Re1 {[%clk 0:02:33]}  Nxe5 {[%clk 0:02:12]} 10. Rxe5 {[%clk 0:02:31]}  Qc7 {[%clk 0:02:09]} 11. Qe2 {[%clk 0:02:23]}  Ng4 {[%clk 0:02:03]} 12. Bf4 {[%clk 0:02:10]}  Nxe5 {[%clk 0:02:00]} 13. Bxe5 {[%clk 0:02:10]}  Bd6 {[%clk 0:01:55]} 14. f4 {[%clk 0:02:08]}  O-O {[%clk 0:01:43]} 15. g4 {[%clk 0:01:52]}  Bxe5 {[%clk 0:01:39]} 16. dxe5 {[%clk 0:01:48]}  Qb6+ {[%clk 0:01:34]} 17. Kg2 {[%clk 0:01:21]}  Qxb2 {[%clk 0:01:26]} 18. Rb1 {[%clk 0:01:20]}  Qxc3 {[%clk 0:01:21]} 19. gxf5 {[%clk 0:01:16]}  b5 {[%clk 0:01:16]} 20. Bd3 {[%clk 0:01:13]}  exf5 {[%clk 0:01:13]} 21. Bxf5 {[%clk 0:01:09]}  Rad8 {[%clk 0:01:07]} 22. Bd3 {[%clk 0:01:07]}  g6 {[%clk 0:00:58]} 23. Rf1 {[%clk 0:01:04]}  Rd4 {[%clk 0:00:49]} 24. Rf3 {[%clk 0:00:54]}  Qc5 {[%clk 0:00:45]} 25. h4 {[%clk 0:00:46]}  Re8 {[%clk 0:00:38]} 26. h5 {[%clk 0:00:45]}  Qd5 {[%clk 0:00:28]} 27. hxg6 {[%clk 0:00:41]}  hxg6 {[%clk 0:00:25]} 28. Kg3 {[%clk 0:00:39]}  Kg7 {[%clk 0:00:21]} 29. c3 {[%clk 0:00:30]}  Ra4 {[%clk 0:00:17]} 30. c4 {[%clk 0:00:25]}  bxc4 {[%clk 0:00:14]} 31. Be4 {[%clk 0:00:26]}  Qe6 {[%clk 0:00:12]} 32. Qc2 {[%clk 0:00:22]}  Rb4 {[%clk 0:00:09]} 33. Qc3 {[%clk 0:00:19]}  Rbb8 {[%clk 0:00:07]} 34. Kf2 {[%clk 0:00:09]}  Rb5 {[%clk 0:00:06]} 35. Qd4 {[%clk 0:00:06]}  Reb8 {[%clk 0:00:05]} 36. Re3 {[%clk 0:00:06]}  Rb2+ {[%clk 0:00:05]} 37. Kg3 {[%clk 0:00:06]}  Rb1 {[%clk 0:00:04]} 38. Bxb1 {[%clk 0:00:06]}  Rxb1 {[%clk 0:00:03]} 39. Qe4 {[%clk 0:00:07]}  Rg1+ {[%clk 0:00:03]} 40. Kf2 {[%clk 0:00:07]}  Qg4 {[%clk 0:00:03]} 41. Qf3 {[%clk 0:00:08]}  Qxf3+ {[%clk 0:00:03]} 42. Rxf3 {[%clk 0:00:08]}  Rc1 {[%clk 0:00:03]} 43. Ra3 {[%clk 0:00:08]}  Rc2+ {[%clk 0:00:04]} 44. Ke3 {[%clk 0:00:08]}  c3 {[%clk 0:00:04]} 45. Kd3 {[%clk 0:00:08]}  Rc1 {[%clk 0:00:05]} 46. Rxa7 {[%clk 0:00:08]}  Rd1+ {[%clk 0:00:04]} 47. Kxc3 {[%clk 0:00:08]}  Rf1 {[%clk 0:00:05]} 48. Ra4 {[%clk 0:00:08]}  g5 {[%clk 0:00:04]} 49. fxg5 {[%clk 0:00:08]}  Kg6 {[%clk 0:00:05]} 50. Rc4 {[%clk 0:00:08]}  Kxg5 {[%clk 0:00:05]} 51. Rxc6 {[%clk 0:00:08]}  Rc1+ {[%clk 0:00:05]} 0-1


[Site "https://www.chess.com"]

[Event "Titled Tuesday Blitz February 22 Late 2022"]
[White "Ansh M Shah"]
[Black "Domingo Nunez, Alejandro"]
[WhiteFideId "25033379"]
[BlackFideId "22245561"]
[WhiteElo "1819"]
[BlackElo "2215"]
[Result "0-1"]
[Round "07"]
[TimeControl "180+1"]
[Date "2022.02.23"]
[WhiteClock "0:00:06"]
[BlackClock "0:00:21"]

1. d4 {[%clk 0:03:00]}  g6 {[%clk 0:02:57]} 2. c4 {[%clk 0:03:00]}  Bg7 {[%clk 0:02:57]} 3. g3 {[%clk 0:03:00]}  d6 {[%clk 0:02:57]} 4. Bg2 {[%clk 0:03:01]}  Nd7 {[%clk 0:02:58]} 5. Nf3 {[%clk 0:03:01]}  Ngf6 {[%clk 0:02:58]} 6. O-O {[%clk 0:03:01]}  O-O {[%clk 0:02:59]} 7. Nc3 {[%clk 0:03:01]}  c5 {[%clk 0:02:59]} 8. e4 {[%clk 0:03:00]}  Rb8 {[%clk 0:02:59]} 9. h3 {[%clk 0:03:00]}  Ne8 {[%clk 0:02:59]} 10. Be3 {[%clk 0:03:00]}  b6 {[%clk 0:02:59]} 11. Rc1 {[%clk 0:02:57]}  Nc7 {[%clk 0:02:59]} 12. b3 {[%clk 0:02:56]}  a6 {[%clk 0:02:57]} 13. Nd5 {[%clk 0:02:56]}  Ne6 {[%clk 0:02:55]} 14. Qd2 {[%clk 0:02:50]}  Re8 {[%clk 0:02:54]} 15. Rfd1 {[%clk 0:02:38]}  Bb7 {[%clk 0:02:50]} 16. Nc3 {[%clk 0:02:37]}  b5 {[%clk 0:02:41]} 17. d5 {[%clk 0:02:34]}  Nc7 {[%clk 0:02:38]} 18. Bh6 {[%clk 0:02:31]}  Bh8 {[%clk 0:02:38]} 19. Bg5 {[%clk 0:02:30]}  Bc8 {[%clk 0:02:37]} 20. Ne2 {[%clk 0:02:27]}  bxc4 {[%clk 0:02:19]} 21. bxc4 {[%clk 0:02:28]}  Rb2 {[%clk 0:02:18]} 22. Rc2 {[%clk 0:02:28]}  Rb4 {[%clk 0:02:15]} 23. Nc1 {[%clk 0:02:04]}  Nb6 {[%clk 0:02:14]} 24. Qd3 {[%clk 0:02:02]}  Bd7 {[%clk 0:02:13]} 25. Nb3 {[%clk 0:02:01]}  Na4 {[%clk 0:02:10]} 26. Rb1 {[%clk 0:02:00]}  Qc8 {[%clk 0:01:47]} 27. Kh2 {[%clk 0:02:00]}  Qb8 {[%clk 0:01:44]} 28. Bd2 {[%clk 0:01:57]}  Rb7 {[%clk 0:01:43]} 29. Rcc1 {[%clk 0:01:49]}  Nb2 {[%clk 0:01:42]} 30. Qc2 {[%clk 0:01:46]}  Na4 {[%clk 0:01:35]} 31. Na5 {[%clk 0:01:42]}  Rb2 {[%clk 0:01:30]} 32. Rxb2 {[%clk 0:01:31]}  Qxb2 {[%clk 0:01:31]} 33. Qxb2 {[%clk 0:01:27]}  Bxb2 {[%clk 0:01:31]} 34. Rb1 {[%clk 0:01:26]}  Rb8 {[%clk 0:01:32]} 35. Nb3 {[%clk 0:01:16]}  Bc3 {[%clk 0:01:28]} 36. Bf1 {[%clk 0:01:10]}  Rb4 {[%clk 0:01:23]} 37. Bd3 {[%clk 0:00:54]}  Bxd2 {[%clk 0:01:12]} 38. Nbxd2 {[%clk 0:00:51]}  Nc3 {[%clk 0:01:09]} 39. Rxb4 {[%clk 0:00:35]}  cxb4 {[%clk 0:01:09]} 40. Nb3 {[%clk 0:00:35]}  Nxa2 {[%clk 0:01:06]} 41. c5 {[%clk 0:00:36]}  Ba4 {[%clk 0:01:03]} 42. Nfd4 {[%clk 0:00:20]}  dxc5 {[%clk 0:00:36]} 43. Nxc5 {[%clk 0:00:19]}  Bd1 {[%clk 0:00:36]} 44. Nxa6 {[%clk 0:00:17]}  Nxa6 {[%clk 0:00:37]} 45. Bxa6 {[%clk 0:00:18]}  b3 {[%clk 0:00:36]} 46. Bc4 {[%clk 0:00:18]}  Nc1 {[%clk 0:00:36]} 47. Bxb3 {[%clk 0:00:14]}  Nxb3 {[%clk 0:00:36]} 48. Nc6 {[%clk 0:00:14]}  Kf8 {[%clk 0:00:35]} 49. f4 {[%clk 0:00:15]}  Bf3 {[%clk 0:00:35]} 50. Ne5 {[%clk 0:00:11]}  Bxe4 {[%clk 0:00:35]} 51. d6 {[%clk 0:00:10]}  exd6 {[%clk 0:00:34]} 52. Ng4 {[%clk 0:00:10]}  Kg7 {[%clk 0:00:33]} 53. Nf2 {[%clk 0:00:10]}  d5 {[%clk 0:00:34]} 54. Kg1 {[%clk 0:00:09]}  Nd2 {[%clk 0:00:31]} 55. Nd1 {[%clk 0:00:08]}  d4 {[%clk 0:00:30]} 56. Kf2 {[%clk 0:00:08]}  Nc4 {[%clk 0:00:28]} 57. Ke2 {[%clk 0:00:06]}  d3+ {[%clk 0:00:26]} 58. Kf2 {[%clk 0:00:05]}  d2 {[%clk 0:00:25]} 59. Nc3 {[%clk 0:00:06]}  Bc2 {[%clk 0:00:25]} 60. Ke2 {[%clk 0:00:06]}  h5 {[%clk 0:00:23]} 61. g4 {[%clk 0:00:06]}  h4 {[%clk 0:00:21]} 62. g5 {[%clk 0:00:06]}  Kf8 {[%clk 0:00:21]} 0-1


[Site "https://www.chess.com"]

[Event "Titled Tuesday Blitz February 22 Late 2022"]
[White "Bachmann, Axel"]
[Black "Svane, Rasmus"]
[WhiteFideId "3700488"]
[BlackFideId "4657101"]
[WhiteElo "2642"]
[BlackElo "2645"]
[Result "1/2-1/2"]
[Round "07"]
[TimeControl "180+1"]
[Date "2022.02.22"]
[WhiteClock "0:00:06"]
[BlackClock "0:00:02"]

1. d4 {[%clk 0:02:57]}  Nf6 {[%clk 0:02:58]} 2. c4 {[%clk 0:02:57]}  e6 {[%clk 0:02:59]} 3. Nf3 {[%clk 0:02:56]}  d5 {[%clk 0:02:59]} 4. Nc3 {[%clk 0:02:51]}  h6 {[%clk 0:02:56]} 5. g3 {[%clk 0:02:47]}  Bd6 {[%clk 0:02:56]} 6. Bg2 {[%clk 0:02:47]}  O-O {[%clk 0:02:56]} 7. O-O {[%clk 0:02:47]}  Nc6 {[%clk 0:02:56]} 8. b3 {[%clk 0:02:43]}  dxc4 {[%clk 0:02:28]} 9. bxc4 {[%clk 0:02:44]}  e5 {[%clk 0:02:28]} 10. e3 {[%clk 0:02:15]}  Re8 {[%clk 0:02:12]} 11. h3 {[%clk 0:02:08]}  Bf5 {[%clk 0:02:00]} 12. d5 {[%clk 0:02:07]}  Na5 {[%clk 0:01:56]} 13. Qe2 {[%clk 0:02:05]}  b6 {[%clk 0:01:51]} 14. e4 {[%clk 0:02:03]}  Bd7 {[%clk 0:01:51]} 15. Nd2 {[%clk 0:01:59]}  Rc8 {[%clk 0:01:48]} 16. Nb3 {[%clk 0:01:58]}  Nb7 {[%clk 0:01:45]} 17. Be3 {[%clk 0:01:57]}  c6 {[%clk 0:01:43]} 18. Rac1 {[%clk 0:01:49]}  Qe7 {[%clk 0:01:40]} 19. dxc6 {[%clk 0:01:46]}  Bxc6 {[%clk 0:01:40]} 20. Nd5 {[%clk 0:01:47]}  Qe6 {[%clk 0:01:35]} 21. Rfd1 {[%clk 0:01:46]}  Red8 {[%clk 0:01:31]} 22. c5 {[%clk 0:01:32]}  Nxc5 {[%clk 0:01:23]} 23. Nxc5 {[%clk 0:01:31]}  bxc5 {[%clk 0:01:18]} 24. Bxc5 {[%clk 0:01:30]}  Bxc5 {[%clk 0:01:11]} 25. Rxc5 {[%clk 0:01:29]}  Bxd5 {[%clk 0:01:11]} 26. exd5 {[%clk 0:01:28]}  Qd6 {[%clk 0:01:10]} 27. Ra5 {[%clk 0:01:21]}  e4 {[%clk 0:00:46]} 28. Rxa7 {[%clk 0:01:21]}  Qe5 {[%clk 0:00:43]} 29. Ra5 {[%clk 0:01:06]}  Rc3 {[%clk 0:00:40]} 30. Rb5 {[%clk 0:00:58]}  e3 {[%clk 0:00:40]} 31. f4 {[%clk 0:00:53]}  Qc7 {[%clk 0:00:35]} 32. Rb3 {[%clk 0:00:48]}  Rxb3 {[%clk 0:00:30]} 33. axb3 {[%clk 0:00:49]}  Qc5 {[%clk 0:00:30]} 34. Kh2 {[%clk 0:00:40]}  h5 {[%clk 0:00:25]} 35. Rd3 {[%clk 0:00:38]}  Re8 {[%clk 0:00:22]} 36. d6 {[%clk 0:00:36]}  h4 {[%clk 0:00:22]} 37. d7 {[%clk 0:00:36]}  hxg3+ {[%clk 0:00:21]} 38. Kxg3 {[%clk 0:00:31]}  Rd8 {[%clk 0:00:20]} 39. Qxe3 {[%clk 0:00:30]}  Qf5 {[%clk 0:00:12]} 40. Bf3 {[%clk 0:00:26]}  Rxd7 {[%clk 0:00:11]} 41. Rxd7 {[%clk 0:00:20]}  Qxd7 {[%clk 0:00:11]} 42. b4 {[%clk 0:00:19]}  Qb5 {[%clk 0:00:10]} 43. Qc5 {[%clk 0:00:17]}  Qd3 {[%clk 0:00:08]} 44. Qe5 {[%clk 0:00:14]}  Qb1 {[%clk 0:00:04]} 45. b5 {[%clk 0:00:13]}  Qg1+ {[%clk 0:00:04]} 46. Bg2 {[%clk 0:00:13]}  Kh7 {[%clk 0:00:02]} 47. Qf5+ {[%clk 0:00:07]}  Kg8 {[%clk 0:00:02]} 48. Qc8+ {[%clk 0:00:04]}  Kh7 {[%clk 0:00:02]} 49. Qc2+ {[%clk 0:00:05]}  g6 {[%clk 0:00:02]} 50. Kf3 {[%clk 0:00:02]}  Nh5 {[%clk 0:00:02]} 51. Qe2 {[%clk 0:00:03]}  Qd4 {[%clk 0:00:01]} 52. Bf1 {[%clk 0:00:03]}  Qxf4+ {[%clk 0:00:01]} 53. Kg2 {[%clk 0:00:04]}  Qg3+ {[%clk 0:00:01]} 54. Kh1 {[%clk 0:00:04]}  Qf4 {[%clk 0:00:02]} 55. Kg1 {[%clk 0:00:02]}  Ng3 {[%clk 0:00:02]} 56. Qf2 {[%clk 0:00:03]}  Qxf2+ {[%clk 0:00:01]} 57. Kxf2 {[%clk 0:00:04]}  Ne4+ {[%clk 0:00:02]} 58. Ke3 {[%clk 0:00:04]}  Nd6 {[%clk 0:00:02]} 59. Kd4 {[%clk 0:00:05]}  Nxb5+ {[%clk 0:00:02]} 60. Bxb5 {[%clk 0:00:04]}  Kh6 {[%clk 0:00:03]} 61. Ke5 {[%clk 0:00:04]}  Kg5 {[%clk 0:00:03]} 62. Bd3 {[%clk 0:00:05]}  Kh4 {[%clk 0:00:01]} 63. Kf6 {[%clk 0:00:04]}  Kxh3 {[%clk 0:00:01]} 64. Bxg6 {[%clk 0:00:05]}  fxg6 {[%clk 0:00:02]} 65. Kxg6 {[%clk 0:00:06]} 1/2-1/2


[Site "https://www.chess.com"]

[Event "Titled Tuesday Blitz February 22 Late 2022"]
[White "Barp, Alberto"]
[Black "Zakhartsov, Vladimir"]
[WhiteFideId "872555"]
[BlackFideId "4145097"]
[WhiteElo "2229"]
[BlackElo "2432"]
[Result "1-0"]
[Round "07"]
[TimeControl "180+1"]
[Date "2022.02.22"]
[WhiteClock "0:01:17"]
[BlackClock "0:01:52"]

1. d4 {[%clk 0:03:00]}  d5 {[%clk 0:02:51]} 2. c4 {[%clk 0:02:58]}  e5 {[%clk 0:02:52]} 3. dxe5 {[%clk 0:02:58]}  d4 {[%clk 0:02:52]} 4. Nf3 {[%clk 0:02:59]}  Nc6 {[%clk 0:02:52]} 5. Nbd2 {[%clk 0:03:00]}  Nge7 {[%clk 0:02:52]} 6. Nb3 {[%clk 0:03:00]}  Nf5 {[%clk 0:02:51]} 7. e4 {[%clk 0:03:00]}  dxe3 {[%clk 0:02:51]} 8. Qxd8+ {[%clk 0:03:00]}  Nxd8 {[%clk 0:02:51]} 9. fxe3 {[%clk 0:03:01]}  Bb4+ {[%clk 0:02:49]} 10. Kf2 {[%clk 0:02:59]}  O-O {[%clk 0:02:49]} 11. Bd3 {[%clk 0:02:58]}  Nc6 {[%clk 0:02:49]} 12. Nbd4 {[%clk 0:02:55]}  Nfe7 {[%clk 0:02:39]} 13. a3 {[%clk 0:02:52]}  Bc5 {[%clk 0:02:36]} 14. b4 {[%clk 0:02:51]}  Bxd4 {[%clk 0:02:34]} 15. exd4 {[%clk 0:02:51]}  Bg4 {[%clk 0:02:34]} 16. Bb2 {[%clk 0:02:50]}  Rad8 {[%clk 0:02:28]} 17. d5 {[%clk 0:02:47]}  b5 {[%clk 0:02:28]} 18. Be2 {[%clk 0:02:33]}  Nb8 {[%clk 0:02:26]} 19. Rhd1 {[%clk 0:02:28]}  bxc4 {[%clk 0:02:25]} 20. Bxc4 {[%clk 0:02:29]}  Nd7 {[%clk 0:02:25]} 21. Bb3 {[%clk 0:02:18]}  Nb6 {[%clk 0:02:23]} 22. d6 {[%clk 0:02:17]}  cxd6 {[%clk 0:02:23]} 23. exd6 {[%clk 0:02:09]}  Nf5 {[%clk 0:02:23]} 24. Be5 {[%clk 0:02:03]}  Rfe8 {[%clk 0:02:22]} 25. Bf4 {[%clk 0:02:00]}  h6 {[%clk 0:02:20]} 26. h3 {[%clk 0:01:59]}  Bxf3 {[%clk 0:02:20]} 27. gxf3 {[%clk 0:01:58]}  g5 {[%clk 0:02:21]} 28. Bh2 {[%clk 0:01:57]}  Re3 {[%clk 0:02:19]} 29. Bc2 {[%clk 0:01:54]}  Rde8 {[%clk 0:02:00]} 30. Bxf5 {[%clk 0:01:53]}  Re2+ {[%clk 0:02:01]} 31. Kg1 {[%clk 0:01:52]}  Rb2 {[%clk 0:01:59]} 32. d7 {[%clk 0:01:44]}  Nxd7 {[%clk 0:01:59]} 33. Rxd7 {[%clk 0:01:23]}  Ree2 {[%clk 0:01:56]} 34. Bd6 {[%clk 0:01:20]}  Rg2+ {[%clk 0:01:49]} 35. Kh1 {[%clk 0:01:20]}  Rgf2 {[%clk 0:01:49]} 36. Rd8+ {[%clk 0:01:17]}  Kg7 {[%clk 0:01:49]} 37. Be5+ {[%clk 0:01:18]}  f6 {[%clk 0:01:50]} 38. Bxb2 {[%clk 0:01:18]}  Rxb2 {[%clk 0:01:50]} 39. Rad1 {[%clk 0:01:17]}  h5 {[%clk 0:01:51]} 40. R1d7+ {[%clk 0:01:17]}  Kh6 {[%clk 0:01:52]} 41. Rh7# {[%clk 0:01:17]} 1-0


[Site "https://www.chess.com"]

[Event "Titled Tuesday Blitz February 22 Late 2022"]
[White "Batsiashvili, Nino"]
[Black "Willathgamuwa, Kevin"]
[WhiteFideId "13602993"]
[BlackFideId "3214168"]
[WhiteElo "2230"]
[BlackElo "1943"]
[Result "1-0"]
[Round "07"]
[TimeControl "180+1"]
[Date "2022.02.23"]
[WhiteClock "0:01:06"]
[BlackClock "0:00:07"]

1. d4 {[%clk 0:02:56]}  Nf6 {[%clk 0:02:59]} 2. c4 {[%clk 0:02:55]}  e5 {[%clk 0:02:59]} 3. dxe5 {[%clk 0:02:54]}  Ng4 {[%clk 0:03:00]} 4. Nf3 {[%clk 0:02:53]}  Bc5 {[%clk 0:03:00]} 5. e3 {[%clk 0:02:54]}  Nc6 {[%clk 0:03:00]} 6. Be2 {[%clk 0:02:51]}  O-O {[%clk 0:02:59]} 7. a3 {[%clk 0:02:50]}  a5 {[%clk 0:02:58]} 8. Nc3 {[%clk 0:02:49]}  Ncxe5 {[%clk 0:02:54]} 9. Nxe5 {[%clk 0:02:49]}  Nxe5 {[%clk 0:02:55]} 10. Rb1 {[%clk 0:02:50]}  Ra6 {[%clk 0:02:42]} 11. b4 {[%clk 0:02:49]}  axb4 {[%clk 0:02:42]} 12. axb4 {[%clk 0:02:50]}  Ba7 {[%clk 0:02:42]} 13. Nb5 {[%clk 0:02:35]}  Bb8 {[%clk 0:02:29]} 14. f4 {[%clk 0:02:33]}  Ng6 {[%clk 0:02:12]} 15. O-O {[%clk 0:02:32]}  Qe7 {[%clk 0:02:01]} 16. c5 {[%clk 0:02:21]}  c6 {[%clk 0:01:41]} 17. Nd6 {[%clk 0:02:18]}  Ra7 {[%clk 0:01:16]} 18. Qd4 {[%clk 0:02:09]}  Ra4 {[%clk 0:01:05]} 19. Bb2 {[%clk 0:02:09]}  f6 {[%clk 0:01:05]} 20. Bc4+ {[%clk 0:02:08]}  Kh8 {[%clk 0:01:06]} 21. Bb3 {[%clk 0:02:05]}  Ra8 {[%clk 0:01:03]} 22. e4 {[%clk 0:02:02]}  Qxd6 {[%clk 0:00:46]} 23. cxd6 {[%clk 0:01:59]}  Ba7 {[%clk 0:00:47]} 24. e5 {[%clk 0:01:57]}  fxe5 {[%clk 0:00:37]} 25. fxe5 {[%clk 0:01:56]}  Bxd4+ {[%clk 0:00:26]} 26. Bxd4 {[%clk 0:01:56]}  b6 {[%clk 0:00:25]} 27. Rxf8+ {[%clk 0:01:53]}  Nxf8 {[%clk 0:00:26]} 28. Rf1 {[%clk 0:01:45]}  Ba6 {[%clk 0:00:21]} 29. Rf7 {[%clk 0:01:43]}  Ne6 {[%clk 0:00:15]} 30. Bxe6 {[%clk 0:01:36]}  dxe6 {[%clk 0:00:16]} 31. d7 {[%clk 0:01:30]}  Kg8 {[%clk 0:00:16]} 32. Re7 {[%clk 0:01:27]}  Kf8 {[%clk 0:00:14]} 33. Rxe6 {[%clk 0:01:27]}  Rd8 {[%clk 0:00:14]} 34. Rd6 {[%clk 0:01:21]}  Ke7 {[%clk 0:00:14]} 35. Rxc6 {[%clk 0:01:15]}  Rxd7 {[%clk 0:00:13]} 36. Bxb6 {[%clk 0:01:12]}  Rd1+ {[%clk 0:00:10]} 37. Kf2 {[%clk 0:01:11]}  Rd2+ {[%clk 0:00:11]} 38. Ke3 {[%clk 0:01:10]}  Rxg2 {[%clk 0:00:11]} 39. Bc5+ {[%clk 0:01:10]}  Kd7 {[%clk 0:00:10]} 40. Rxa6 {[%clk 0:01:11]}  Rxh2 {[%clk 0:00:09]} 41. e6+ {[%clk 0:01:08]}  Kc7 {[%clk 0:00:08]} 42. e7 {[%clk 0:01:08]}  Kd7 {[%clk 0:00:07]} 43. Ra7+ {[%clk 0:01:06]} 1-0


[Site "https://www.chess.com"]

[Event "Titled Tuesday Blitz February 22 Late 2022"]
[White "Bodnar, Nikolay"]
[Black "Csonka, Balazs"]
[WhiteFideId "14106469"]
[BlackFideId "742910"]
[WhiteElo "2505"]
[BlackElo "2643"]
[Result "0-1"]
[Round "07"]
[TimeControl "180+1"]
[Date "2022.02.23"]
[WhiteClock "0:00:08"]
[BlackClock "0:00:06"]

1. e4 {[%clk 0:02:59]}  e5 {[%clk 0:02:58]} 2. Nf3 {[%clk 0:03:00]}  Nc6 {[%clk 0:02:58]} 3. Bc4 {[%clk 0:03:00]}  Nf6 {[%clk 0:02:55]} 4. d3 {[%clk 0:03:00]}  Be7 {[%clk 0:02:48]} 5. O-O {[%clk 0:03:00]}  O-O {[%clk 0:02:48]} 6. Re1 {[%clk 0:03:00]}  d6 {[%clk 0:02:46]} 7. a4 {[%clk 0:03:00]}  Kh8 {[%clk 0:02:42]} 8. a5 {[%clk 0:02:59]}  a6 {[%clk 0:02:41]} 9. h3 {[%clk 0:02:59]}  Ng8 {[%clk 0:02:38]} 10. Nc3 {[%clk 0:02:58]}  f5 {[%clk 0:02:27]} 11. Nd5 {[%clk 0:02:58]}  fxe4 {[%clk 0:02:13]} 12. dxe4 {[%clk 0:02:58]}  Nf6 {[%clk 0:02:13]} 13. b4 {[%clk 0:02:56]}  Nxd5 {[%clk 0:01:51]} 14. exd5 {[%clk 0:02:56]}  Nb8 {[%clk 0:01:51]} 15. Ra3 {[%clk 0:02:55]}  Bf5 {[%clk 0:01:41]} 16. Bd3 {[%clk 0:02:33]}  Nd7 {[%clk 0:01:39]} 17. c4 {[%clk 0:02:23]}  Qe8 {[%clk 0:01:21]} 18. Bxf5 {[%clk 0:02:09]}  Rxf5 {[%clk 0:01:22]} 19. Rae3 {[%clk 0:02:09]}  Qg6 {[%clk 0:01:08]} 20. Nd4 {[%clk 0:01:49]}  Rxf2 {[%clk 0:00:43]} 21. Kxf2 {[%clk 0:01:15]}  Bh4+ {[%clk 0:00:40]} 22. g3 {[%clk 0:01:12]}  exd4 {[%clk 0:00:35]} 23. Qxd4 {[%clk 0:00:57]}  Rf8+ {[%clk 0:00:06]} 24. Kg2 {[%clk 0:00:54]}  Bg5 {[%clk 0:00:04]} 25. Re6 {[%clk 0:00:45]}  Bf6 {[%clk 0:00:04]} 26. Qe4 {[%clk 0:00:44]}  Qf7 {[%clk 0:00:03]} 27. Re8 {[%clk 0:00:43]}  Ne5 {[%clk 0:00:02]} 28. Rxf8+ {[%clk 0:00:43]}  Qxf8 {[%clk 0:00:03]} 29. Bb2 {[%clk 0:00:40]}  Qe8 {[%clk 0:00:03]} 30. Rf1 {[%clk 0:00:34]}  h6 {[%clk 0:00:03]} 31. Kh2 {[%clk 0:00:19]}  Qa4 {[%clk 0:00:03]} 32. Bxe5 {[%clk 0:00:18]}  dxe5 {[%clk 0:00:02]} 33. h4 {[%clk 0:00:11]}  Qxb4 {[%clk 0:00:01]} 34. Kh3 {[%clk 0:00:10]}  Qxa5 {[%clk 0:00:01]} 35. d6 {[%clk 0:00:09]}  cxd6 {[%clk 0:00:01]} 36. Qxb7 {[%clk 0:00:09]}  Qc5 {[%clk 0:00:01]} 37. Qa8+ {[%clk 0:00:09]}  Kh7 {[%clk 0:00:01]} 38. Qd5 {[%clk 0:00:10]}  Qxd5 {[%clk 0:00:01]} 39. cxd5 {[%clk 0:00:11]}  Kg6 {[%clk 0:00:01]} 40. Ra1 {[%clk 0:00:10]}  Kf5 {[%clk 0:00:02]} 41. Ra4 {[%clk 0:00:10]}  e4 {[%clk 0:00:01]} 42. Kg2 {[%clk 0:00:09]}  Ke5 {[%clk 0:00:02]} 43. Ra5 {[%clk 0:00:10]}  Bd8 {[%clk 0:00:02]} 44. Rxa6 {[%clk 0:00:09]}  Kxd5 {[%clk 0:00:02]} 45. Ra7 {[%clk 0:00:09]}  Bf6 {[%clk 0:00:02]} 46. Kf1 {[%clk 0:00:09]}  Kd4 {[%clk 0:00:02]} 47. Ke2 {[%clk 0:00:09]}  d5 {[%clk 0:00:03]} 48. Rd7 {[%clk 0:00:09]}  Be5 {[%clk 0:00:03]} 49. g4 {[%clk 0:00:09]}  Bf6 {[%clk 0:00:04]} 50. h5 {[%clk 0:00:08]}  Ke5 {[%clk 0:00:04]} 51. Ra7 {[%clk 0:00:08]}  Kf4 {[%clk 0:00:04]} 52. Rd7 {[%clk 0:00:06]}  d4 {[%clk 0:00:04]} 53. g5 {[%clk 0:00:05]}  Kxg5 {[%clk 0:00:04]} 54. Rd5+ {[%clk 0:00:05]}  Kf4 {[%clk 0:00:04]} 55. Kf2 {[%clk 0:00:06]}  d3 {[%clk 0:00:04]} 56. Ra5 {[%clk 0:00:05]}  Bh4+ {[%clk 0:00:04]} 57. Kg2 {[%clk 0:00:05]}  d2 {[%clk 0:00:04]} 58. Rd5 {[%clk 0:00:05]}  Ke3 {[%clk 0:00:04]} 59. Kf1 {[%clk 0:00:06]}  Bg3 {[%clk 0:00:03]} 60. Rd8 {[%clk 0:00:06]}  Be5 {[%clk 0:00:03]} 61. Rd5 {[%clk 0:00:02]}  Bd4 {[%clk 0:00:03]} 62. Kg2 {[%clk 0:00:03]}  d1=Q {[%clk 0:00:03]} 63. Rxd4 {[%clk 0:00:04]}  Qe2+ {[%clk 0:00:03]} 64. Kh3 {[%clk 0:00:05]}  Kxd4 {[%clk 0:00:03]} 65. Kg3 {[%clk 0:00:05]}  Qf3+ {[%clk 0:00:04]} 66. Kh4 {[%clk 0:00:06]}  Qf4+ {[%clk 0:00:04]} 67. Kh3 {[%clk 0:00:06]}  Qg5 {[%clk 0:00:04]} 68. Kh2 {[%clk 0:00:06]}  e3 {[%clk 0:00:05]} 69. Kh3 {[%clk 0:00:07]}  e2 {[%clk 0:00:05]} 70. Kh2 {[%clk 0:00:07]}  e1=Q {[%clk 0:00:06]} 71. Kh3 {[%clk 0:00:08]}  Qh1# {[%clk 0:00:06]} 0-1


[Site "https://www.chess.com"]

[Event "Titled Tuesday Blitz February 22 Late 2022"]
[White "Boros, Denes"]
[Black "Maltsevskaya, Aleksandra"]
[WhiteFideId "722340"]
[BlackFideId "24174041"]
[WhiteElo "2464"]
[BlackElo "2283"]
[Result "1-0"]
[Round "07"]
[TimeControl "180+1"]
[Date "2022.02.22"]
[WhiteClock "0:00:48"]
[BlackClock "0:00:01"]

1. d4 {[%clk 0:03:00]}  Nf6 {[%clk 0:02:58]} 2. Nc3 {[%clk 0:03:00]}  d5 {[%clk 0:02:57]} 3. Bg5 {[%clk 0:03:01]}  e6 {[%clk 0:02:55]} 4. a3 {[%clk 0:02:58]}  c5 {[%clk 0:02:53]} 5. e3 {[%clk 0:02:58]}  Nc6 {[%clk 0:02:53]} 6. Nf3 {[%clk 0:02:58]}  Bd7 {[%clk 0:02:49]} 7. Bd3 {[%clk 0:02:53]}  Qb6 {[%clk 0:02:39]} 8. dxc5 {[%clk 0:02:50]}  Bxc5 {[%clk 0:02:33]} 9. O-O {[%clk 0:02:48]}  Be7 {[%clk 0:02:29]} 10. e4 {[%clk 0:02:41]}  dxe4 {[%clk 0:02:23]} 11. Nxe4 {[%clk 0:02:41]}  O-O-O {[%clk 0:02:21]} 12. Qe2 {[%clk 0:02:35]}  Nxe4 {[%clk 0:01:59]} 13. Bxe4 {[%clk 0:02:34]}  Nd4 {[%clk 0:01:52]} 14. Qc4+ {[%clk 0:02:32]}  Qc5 {[%clk 0:01:15]} 15. Qxc5+ {[%clk 0:02:28]}  Bxc5 {[%clk 0:01:16]} 16. Bxd8 {[%clk 0:02:23]}  Rxd8 {[%clk 0:01:13]} 17. Nxd4 {[%clk 0:02:11]}  Bxd4 {[%clk 0:01:14]} 18. c3 {[%clk 0:02:11]}  Bc5 {[%clk 0:01:13]} 19. Rad1 {[%clk 0:02:11]}  g6 {[%clk 0:01:10]} 20. Rfe1 {[%clk 0:02:06]}  Kc7 {[%clk 0:01:09]} 21. Rd2 {[%clk 0:02:06]}  Re8 {[%clk 0:01:03]} 22. b4 {[%clk 0:02:01]}  Be7 {[%clk 0:01:00]} 23. Bxb7 {[%clk 0:01:41]}  Ba4 {[%clk 0:00:45]} 24. Ba6 {[%clk 0:01:37]}  Bf6 {[%clk 0:00:42]} 25. Re4 {[%clk 0:01:32]}  Kb6 {[%clk 0:00:33]} 26. Rd6+ {[%clk 0:01:25]}  Kc7 {[%clk 0:00:33]} 27. Rd3 {[%clk 0:01:24]}  Kb6 {[%clk 0:00:28]} 28. b5 {[%clk 0:01:11]}  Bc2 {[%clk 0:00:14]} 29. Rd6+ {[%clk 0:01:11]}  Kc7 {[%clk 0:00:09]} 30. Rc6+ {[%clk 0:01:10]}  Kd7 {[%clk 0:00:07]} 31. Rec4 {[%clk 0:01:08]}  Be5 {[%clk 0:00:07]} 32. f4 {[%clk 0:01:00]}  Bb8 {[%clk 0:00:05]} 33. Kf2 {[%clk 0:00:55]}  Bb3 {[%clk 0:00:03]} 34. Rd4+ {[%clk 0:00:55]}  Ke7 {[%clk 0:00:04]} 35. c4 {[%clk 0:00:52]}  e5 {[%clk 0:00:02]} 36. fxe5 {[%clk 0:00:52]}  Bxe5 {[%clk 0:00:03]} 37. Rd5 {[%clk 0:00:53]}  f6 {[%clk 0:00:03]} 38. Bc8 {[%clk 0:00:52]}  Kf7 {[%clk 0:00:01]} 39. Rd3 {[%clk 0:00:48]} 1-0


[Site "https://www.chess.com"]